[Event "*** Titled Tuesday Blitz"]
[Site "Chess.com"]
[Date "2020.04.21"]
[Round "4"]
[White "Alexander_Donchenko"]
[Black "stefan_95"]
[Result "1/2-1/2"]
[WhiteElo "2800"]
[BlackElo "2636"]
[TimeControl "180+1"]
[EndTime "10:41:19 PDT"]
[Termination "Game drawn by repetition"]

1. Nf3 {[%clk 0:03:00.9]} 1... Nf6 {[%clk 0:02:59.2]} 2. c4 {[%clk 0:03:00.4]}
2... e6 {[%clk 0:02:59.6]} 3. g3 {[%clk 0:03:00.9]} 3... d5 {[%clk 0:03:00]} 4.
Bg2 {[%clk 0:03:01.6]} 4... Be7 {[%clk 0:03:00.6]} 5. O-O {[%clk 0:03:01.9]}
5... O-O {[%clk 0:03:01.1]} 6. d4 {[%clk 0:03:02.6]} 6... dxc4 {[%clk
0:03:01.5]} 7. Qc2 {[%clk 0:03:02.2]} 7... b6 {[%clk 0:03:00.2]} 8. Bg5 {[%clk
0:03:00.9]} 8... Nd5 {[%clk 0:02:58.5]} 9. Bxe7 {[%clk 0:03:00.8]} 9... Qxe7
{[%clk 0:02:59.4]} 10. Nbd2 {[%clk 0:02:57.7]} 10... Bb7 {[%clk 0:02:55.5]} 11.
Nxc4 {[%clk 0:02:56.5]} 11... Nd7 {[%clk 0:02:54.2]} 12. a3 {[%clk 0:02:53.2]}
12... c5 {[%clk 0:02:52.2]} 13. e4 {[%clk 0:02:53.4]} 13... N5f6 {[%clk
0:02:51.3]} 14. e5 {[%clk 0:02:53.8]} 14... Nd5 {[%clk 0:02:49.6]} 15. Nd6
{[%clk 0:02:53.5]} 15... Ba6 {[%clk 0:02:49.3]} 16. Rfd1 {[%clk 0:02:42.2]}
16... cxd4 {[%clk 0:02:49.1]} 17. Qe4 {[%clk 0:02:41.8]} 17... Rad8 {[%clk
0:02:36.9]} 18. Nxd4 {[%clk 0:01:15.6]} 18... Nxe5 {[%clk 0:02:35.3]} 19. Qxe5
{[%clk 0:00:59.8]} 19... Qxd6 {[%clk 0:02:35.1]} 20. Qxd6 {[%clk 0:00:55.1]}
20... Rxd6 {[%clk 0:02:36]} 21. Rac1 {[%clk 0:00:55.7]} 21... Rd7 {[%clk
0:01:53.1]} 22. Bxd5 {[%clk 0:00:48.3]} 22... exd5 {[%clk 0:01:43.2]} 23. Re1
{[%clk 0:00:47.9]} 23... h6 {[%clk 0:01:26.5]} 24. f4 {[%clk 0:00:45.1]} 24...
Bd3 {[%clk 0:01:20.2]} 25. Kf2 {[%clk 0:00:44.3]} 25... Be4 {[%clk 0:01:18.7]}
26. Rc3 {[%clk 0:00:41.7]} 26... Re8 {[%clk 0:01:11.9]} 27. h4 {[%clk
0:00:37.1]} 27... f6 {[%clk 0:01:06.9]} 28. Rec1 {[%clk 0:00:36.7]} 28... Kf7
{[%clk 0:01:03.7]} 29. Rc7 {[%clk 0:00:33.6]} 29... Ree7 {[%clk 0:00:59.5]} 30.
Rc8 {[%clk 0:00:33.5]} 30... Re8 {[%clk 0:00:57.8]} 31. R8c7 {[%clk 0:00:33.5]}
31... Rxc7 {[%clk 0:00:38.3]} 32. Rxc7+ {[%clk 0:00:34.4]} 32... Re7 {[%clk
0:00:38.7]} 33. Rxe7+ {[%clk 0:00:34.5]} 33... Kxe7 {[%clk 0:00:39.6]} 34. b4
{[%clk 0:00:35]} 34... a6 {[%clk 0:00:36.5]} 35. Ke3 {[%clk 0:00:34.9]} 35...
Kd6 {[%clk 0:00:35.8]} 36. Kf2 {[%clk 0:00:35]} 36... g5 {[%clk 0:00:27.9]} 37.
hxg5 {[%clk 0:00:34.6]} 37... hxg5 {[%clk 0:00:27.3]} 38. Ke3 {[%clk 0:00:33.6]}
38... a5 {[%clk 0:00:26.1]} 39. Kf2 {[%clk 0:00:33.3]} 39... axb4 {[%clk
0:00:25.4]} 40. axb4 {[%clk 0:00:34.2]} 40... Ke7 {[%clk 0:00:24.5]} 41. Nc6+
{[%clk 0:00:25.8]} 41... Kd6 {[%clk 0:00:23.7]} 42. Nd4 {[%clk 0:00:25.8]} 42...
Ke7 {[%clk 0:00:23.8]} 43. Nc6+ {[%clk 0:00:26.2]} 43... Ke6 {[%clk 0:00:24.1]}
44. Nd4+ {[%clk 0:00:26.3]} 44... Kf7 {[%clk 0:00:22.5]} 45. Ke3 {[%clk
0:00:23.9]} 45... Kg6 {[%clk 0:00:22.2]} 46. Ne6 {[%clk 0:00:22.4]} 46... Kf5
{[%clk 0:00:20.9]} 47. Nd4+ {[%clk 0:00:20.6]} 47... Kg4 {[%clk 0:00:21.2]} 48.
fxg5 {[%clk 0:00:21.1]} 48... Kxg5 {[%clk 0:00:17.9]} 49. Ne6+ {[%clk 0:00:20]}
49... Kg4 {[%clk 0:00:17.8]} 50. Kf2 {[%clk 0:00:20.2]} 50... f5 {[%clk
0:00:17.2]} 51. Nd4 {[%clk 0:00:20.1]} 51... f4 {[%clk 0:00:16.9]} 52. gxf4
{[%clk 0:00:21]} 52... Kxf4 {[%clk 0:00:17.8]} 53. Ne2+ {[%clk 0:00:21.6]} 53...
Ke5 {[%clk 0:00:17.8]} 54. Ke3 {[%clk 0:00:22.5]} 54... Bg6 {[%clk 0:00:17.7]}
55. Nd4 {[%clk 0:00:23]} 55... Bh5 {[%clk 0:00:16.4]} 56. Nc6+ {[%clk
0:00:22.8]} 56... Kd6 {[%clk 0:00:16.1]} 57. Nd4 {[%clk 0:00:23.4]} 57... Bg6
{[%clk 0:00:15.7]} 58. Nf3 {[%clk 0:00:23.1]} 58... Be4 {[%clk 0:00:15.8]} 59.
Nd4 {[%clk 0:00:21.1]} 59... Bb1 {[%clk 0:00:15.7]} 60. Nf3 {[%clk 0:00:20.6]}
60... Kc6 {[%clk 0:00:15.1]} 61. Kd4 {[%clk 0:00:16.6]} 61... Be4 {[%clk
0:00:14]} 62. Nd2 {[%clk 0:00:16]} 62... Kb5 {[%clk 0:00:14.3]} 63. Kc3 {[%clk
0:00:16.1]} 63... Bg2 {[%clk 0:00:13.9]} 64. Nb3 {[%clk 0:00:16.1]} 64... Be4
{[%clk 0:00:11.3]} 65. Nd4+ {[%clk 0:00:16.3]} 65... Ka4 {[%clk 0:00:11.7]} 66.
Nc6 {[%clk 0:00:16.6]} 66... Bg2 {[%clk 0:00:08.1]} 67. Nd4 {[%clk 0:00:16.9]}
67... Be4 {[%clk 0:00:08.4]} 68. Nc6 {[%clk 0:00:17.3]} 68... Ka3 {[%clk
0:00:08.3]} 69. Nd4 {[%clk 0:00:17.5]} 69... Ka4 {[%clk 0:00:08.3]} 1/2-1/2

[Event "*** Titled Tuesday Blitz"]
[Site "Chess.com"]
[Date "2020.04.21"]
[Round "4"]
[White "DanielDardha2005"]
[Black "Nitzan_Steinberg"]
[Result "1-0"]
[WhiteElo "2577"]
[BlackElo "2825"]
[TimeControl "180+1"]
[EndTime "10:41:19 PDT"]
[Termination "DanielDardha2005 won by resignation"]

1. e4 {[%clk 0:02:53]} 1... c5 {[%clk 0:02:58.5]} 2. Nc3 {[%clk 0:02:49.5]} 2...
d6 {[%clk 0:02:56.1]} 3. Nge2 {[%clk 0:02:48.4]} 3... a6 {[%clk 0:02:55]} 4. g3
{[%clk 0:02:47.5]} 4... g6 {[%clk 0:02:53]} 5. d4 {[%clk 0:02:46.7]} 5... cxd4
{[%clk 0:02:52.2]} 6. Nxd4 {[%clk 0:02:47.6]} 6... Bg7 {[%clk 0:02:51.5]} 7. Bg2
{[%clk 0:02:47.8]} 7... Nf6 {[%clk 0:02:51.6]} 8. O-O {[%clk 0:02:47]} 8... O-O
{[%clk 0:02:51.8]} 9. a4 {[%clk 0:02:47]} 9... Bd7 {[%clk 0:02:49.2]} 10. Nd5
{[%clk 0:02:41.3]} 10... Nc6 {[%clk 0:02:40.8]} 11. Ne2 {[%clk 0:02:39.1]} 11...
Rc8 {[%clk 0:02:34.1]} 12. Be3 {[%clk 0:02:35.3]} 12... Nxd5 {[%clk 0:02:30.4]}
13. exd5 {[%clk 0:02:36.2]} 13... Ne5 {[%clk 0:02:30.8]} 14. Bd4 {[%clk
0:02:23.4]} 14... Bf5 {[%clk 0:02:24]} 15. c3 {[%clk 0:02:20.5]} 15... h5 {[%clk
0:02:14.3]} 16. f4 {[%clk 0:01:58.5]} 16... Ng4 {[%clk 0:01:54.1]} 17. Bxg7
{[%clk 0:01:32.6]} 17... Kxg7 {[%clk 0:01:55]} 18. Qd4+ {[%clk 0:01:32]} 18...
Nf6 {[%clk 0:01:53]} 19. a5 {[%clk 0:01:26.3]} 19... Qd7 {[%clk 0:01:51.6]} 20.
Rfe1 {[%clk 0:01:16.4]} 20... h4 {[%clk 0:01:51.3]} 21. c4 {[%clk 0:01:03.2]}
21... Rh8 {[%clk 0:01:48]} 22. Nc3 {[%clk 0:00:58.6]} 22... hxg3 {[%clk
0:01:40.4]} 23. hxg3 {[%clk 0:00:59.5]} 23... Bh3 {[%clk 0:01:40.3]} 24. Bf3
{[%clk 0:00:42.9]} 24... Bg4 {[%clk 0:01:31.7]} 25. Bg2 {[%clk 0:00:35.5]} 25...
Rce8 {[%clk 0:01:09.2]} 26. Re3 {[%clk 0:00:26.9]} 26... Qf5 {[%clk 0:01:09]}
27. Rae1 {[%clk 0:00:25.1]} 27... Qh5 {[%clk 0:00:50.2]} 28. Kf2 {[%clk
0:00:20]} 28... Kf8 {[%clk 0:00:27.6]} 29. Rh1 {[%clk 0:00:07]} 29... Qxh1
{[%clk 0:00:27.5]} 30. Bxh1 {[%clk 0:00:07.9]} 30... Rxh1 {[%clk 0:00:28]} 31.
Kg2 {[%clk 0:00:07.5]} 31... Rh5 {[%clk 0:00:25.7]} 32. Ne4 {[%clk 0:00:07.5]}
32... Bh3+ {[%clk 0:00:25.4]} 33. Kf3 {[%clk 0:00:05.5]} 33... Nxe4 {[%clk
0:00:19.1]} 34. Rxe4 {[%clk 0:00:06.4]} 34... Bf5 {[%clk 0:00:18.4]} 35. Re1
{[%clk 0:00:04.2]} 35... f6 {[%clk 0:00:17.8]} 36. g4 {[%clk 0:00:03.8]} 36...
Rh3+ {[%clk 0:00:17.9]} 37. Kg2 {[%clk 0:00:04.2]} 37... Bxg4 {[%clk 0:00:18.3]}
38. Rh1 {[%clk 0:00:04.6]} 38... Rxh1 {[%clk 0:00:17.9]} 39. Kxh1 {[%clk
0:00:05.5]} 39... Kf7 {[%clk 0:00:17.7]} 40. Qb6 {[%clk 0:00:04.1]} 40... Bc8
{[%clk 0:00:17.6]} 41. b4 {[%clk 0:00:04.7]} 41... Rh8+ {[%clk 0:00:18.4]} 42.
Kg2 {[%clk 0:00:05.1]} 42... Rh4 {[%clk 0:00:17.1]} 43. Kg3 {[%clk 0:00:04.2]}
43... Rh3+ {[%clk 0:00:16.4]} 44. Kf2 {[%clk 0:00:04.2]} 44... Rc3 {[%clk
0:00:16.8]} 45. c5 {[%clk 0:00:04.2]} 45... dxc5 {[%clk 0:00:15.6]} 46. bxc5
{[%clk 0:00:05.1]} 46... Rc4 {[%clk 0:00:15.5]} 47. d6 {[%clk 0:00:05]} 47... g5
{[%clk 0:00:11.3]} 48. Qc7 {[%clk 0:00:04.1]} 48... Bf5 {[%clk 0:00:10.6]} 49.
Qxe7+ {[%clk 0:00:03.4]} 49... Kg6 {[%clk 0:00:11]} 50. fxg5 {[%clk 0:00:03.5]}
50... Rc2+ {[%clk 0:00:10.1]} 51. Ke3 {[%clk 0:00:03.6]} 51... Rc3+ {[%clk
0:00:10.4]} 52. Kd4 {[%clk 0:00:03.8]} 52... Rd3+ {[%clk 0:00:10.7]} 53. Kc4
{[%clk 0:00:04.3]} 53... Kxg5 {[%clk 0:00:11.2]} 54. Qxb7 {[%clk 0:00:04.6]}
54... Re3 {[%clk 0:00:11.2]} 55. Qg7+ {[%clk 0:00:04.6]} 55... Kf4 {[%clk
0:00:11]} 56. Qh6+ {[%clk 0:00:04.4]} 56... Ke4 {[%clk 0:00:10.8]} 57. Qxe3+
{[%clk 0:00:05.2]} 57... Kxe3 {[%clk 0:00:10.8]} 58. c6 {[%clk 0:00:06.1]} 58...
Be6+ {[%clk 0:00:11]} 59. Kc5 {[%clk 0:00:06.1]} 59... Ke4 {[%clk 0:00:11.2]}
60. d7 {[%clk 0:00:05.7]} 60... Bxd7 {[%clk 0:00:11.6]} 61. cxd7 {[%clk
0:00:06.6]} 61... f5 {[%clk 0:00:12.5]} 62. d8=Q {[%clk 0:00:07.2]} 62... f4
{[%clk 0:00:13.4]} 63. Qe8+ {[%clk 0:00:07.2]} 63... Kd3 {[%clk 0:00:13.3]} 64.
Qc6 {[%clk 0:00:08.1]} 64... f3 {[%clk 0:00:14.2]} 65. Qxa6+ {[%clk 0:00:08.6]}
65... Ke3 {[%clk 0:00:14.2]} 66. Qf1 {[%clk 0:00:09.5]} 66... f2 {[%clk
0:00:15.1]} 67. a6 {[%clk 0:00:10.2]} 1-0

[Event "*** Titled Tuesday Blitz"]
[Site "Chess.com"]
[Date "2020.04.21"]
[Round "4"]
[White "manitodeplomo"]
[Black "crescentmoon2411"]
[Result "0-1"]
[WhiteElo "2607"]
[BlackElo "2766"]
[TimeControl "180+1"]
[EndTime "10:41:23 PDT"]
[Termination "crescentmoon2411 won on time"]

1. d4 {[%clk 0:02:59.9]} 1... Nf6 {[%clk 0:02:59]} 2. c4 {[%clk 0:02:59.8]} 2...
e6 {[%clk 0:02:58.9]} 3. Nf3 {[%clk 0:02:59.6]} 3... d5 {[%clk 0:02:58.9]} 4.
Nc3 {[%clk 0:02:59.4]} 4... Be7 {[%clk 0:02:58.4]} 5. Bg5 {[%clk 0:02:59.1]}
5... h6 {[%clk 0:02:58]} 6. Bxf6 {[%clk 0:02:58]} 6... Bxf6 {[%clk 0:02:58.9]}
7. Qc2 {[%clk 0:02:58.2]} 7... c5 {[%clk 0:02:44.6]} 8. dxc5 {[%clk 0:02:55]}
8... Qa5 {[%clk 0:02:33.9]} 9. e3 {[%clk 0:02:46]} 9... dxc4 {[%clk 0:02:30.3]}
10. Bxc4 {[%clk 0:02:44.1]} 10... Bxc3+ {[%clk 0:02:24.4]} 11. Qxc3 {[%clk
0:02:41.9]} 11... Qxc3+ {[%clk 0:02:23.4]} 12. bxc3 {[%clk 0:02:42.8]} 12... Nd7
{[%clk 0:02:21.5]} 13. c6 {[%clk 0:02:41.2]} 13... bxc6 {[%clk 0:02:21.1]} 14.
Ke2 {[%clk 0:02:35.5]} 14... Nb6 {[%clk 0:02:20.1]} 15. Bd3 {[%clk 0:02:35.2]}
15... Ke7 {[%clk 0:02:12.9]} 16. Ne5 {[%clk 0:02:29.3]} 16... Bd7 {[%clk
0:02:11]} 17. Rhb1 {[%clk 0:02:28.2]} 17... Rab8 {[%clk 0:02:01.5]} 18. a4
{[%clk 0:02:09.8]} 18... a5 {[%clk 0:01:53.3]} 19. Be4 {[%clk 0:02:05.7]} 19...
Rhc8 {[%clk 0:01:44.6]} 20. Ra3 {[%clk 0:01:50.6]} 20... Nd5 {[%clk 0:01:12.2]}
21. Rab3 {[%clk 0:01:40]} 21... Rxb3 {[%clk 0:01:11.9]} 22. Rxb3 {[%clk
0:01:40.9]} 22... f6 {[%clk 0:01:10.5]} 23. Nc4 {[%clk 0:01:34.7]} 23... c5
{[%clk 0:01:09.4]} 24. Kd3 {[%clk 0:01:24.6]} 24... Rc7 {[%clk 0:00:50.7]} 25.
Nxa5 {[%clk 0:01:10.8]} 25... Bxa4 {[%clk 0:00:49.3]} 26. Rb7 {[%clk 0:01:10.9]}
26... Kd7 {[%clk 0:00:25.9]} 27. Bxd5 {[%clk 0:01:05.7]} 27... exd5 {[%clk
0:00:25.8]} 28. c4 {[%clk 0:01:05.5]} 28... Rxb7 {[%clk 0:00:19.1]} 29. Nxb7
{[%clk 0:01:04.9]} 29... Bc6 {[%clk 0:00:16.2]} 30. Nxc5+ {[%clk 0:00:59.7]}
30... Kd6 {[%clk 0:00:16.7]} 31. Kd4 {[%clk 0:00:56.5]} 31... dxc4 {[%clk
0:00:17.1]} 32. e4 {[%clk 0:00:52.6]} 32... c3 {[%clk 0:00:17.6]} 33. Nd3 {[%clk
0:00:33.8]} 33... c2 {[%clk 0:00:17.9]} 34. Nc1 {[%clk 0:00:17.5]} 34... g5
{[%clk 0:00:17.3]} 35. f3 {[%clk 0:00:16.3]} 35... h5 {[%clk 0:00:16.7]} 36. g3
{[%clk 0:00:16.6]} 36... Bb5 {[%clk 0:00:14]} 37. h4 {[%clk 0:00:15.7]} 37...
Bf1 {[%clk 0:00:13.3]} 38. f4 {[%clk 0:00:15.6]} 38... gxf4 {[%clk 0:00:11.6]}
39. gxf4 {[%clk 0:00:16.5]} 39... Bg2 {[%clk 0:00:11.4]} 40. Kd3 {[%clk
0:00:14.3]} 40... Ke6 {[%clk 0:00:11]} 41. Kxc2 {[%clk 0:00:14.1]} 41... Bxe4+
{[%clk 0:00:10.8]} 42. Kd2 {[%clk 0:00:14.7]} 42... Kf5 {[%clk 0:00:11.1]} 43.
Ke3 {[%clk 0:00:15.1]} 43... Bc6 {[%clk 0:00:10.1]} 44. Ne2 {[%clk 0:00:14.5]}
44... Kg4 {[%clk 0:00:10.3]} 45. Nd4 {[%clk 0:00:15.4]} 45... Bd5 {[%clk
0:00:10]} 46. f5 {[%clk 0:00:15.5]} 46... Kxh4 {[%clk 0:00:08.8]} 47. Kf4 {[%clk
0:00:16]} 47... Kh3 {[%clk 0:00:09.2]} 48. Ne2 {[%clk 0:00:13.4]} 48... Kg2
{[%clk 0:00:09.3]} 49. Ng3 {[%clk 0:00:13.1]} 49... h4 {[%clk 0:00:09.3]} 50.
Nh5 {[%clk 0:00:13.5]} 50... h3 {[%clk 0:00:09.7]} 51. Nxf6 {[%clk 0:00:03.5]}
51... h2 {[%clk 0:00:10.1]} 52. Nxd5 {[%clk 0:00:04.3]} 52... h1=Q {[%clk
0:00:10.6]} 53. Ke5 {[%clk 0:00:04.3]} 53... Qe1+ {[%clk 0:00:10]} 54. Kd6
{[%clk 0:00:03.9]} 54... Qg3+ {[%clk 0:00:09.1]} 55. Ke6 {[%clk 0:00:03.8]}
55... Qe1+ {[%clk 0:00:05.8]} 56. Kd6 {[%clk 0:00:03.7]} 56... Kf3 {[%clk
0:00:04.7]} 57. f6 {[%clk 0:00:03.2]} 57... Qg3+ {[%clk 0:00:04.5]} 58. Ke6
{[%clk 0:00:03.1]} 58... Qg6 {[%clk 0:00:04.5]} 59. Ke7 {[%clk 0:00:01.5]} 59...
Qe4+ {[%clk 0:00:04.6]} 60. Kd6 {[%clk 0:00:02.4]} 60... Qf5 {[%clk 0:00:04.4]}
61. Kc6 {[%clk 0:00:01.3]} 61... Ke4 {[%clk 0:00:03.7]} 62. Kc5 {[%clk
0:00:02.2]} 62... Qxd5+ {[%clk 0:00:03.6]} 0-1

[Event "*** Titled Tuesday Blitz"]
[Site "Chess.com"]
[Date "2020.04.21"]
[Round "4"]
[White "LiemLe"]
[Black "wnstop"]
[Result "1-0"]
[WhiteElo "2994"]
[BlackElo "2590"]
[TimeControl "180+1"]
[EndTime "10:41:23 PDT"]
[Termination "LiemLe won by resignation"]

1. e4 {[%clk 0:03:00.9]} 1... c5 {[%clk 0:02:59.7]} 2. Nf3 {[%clk 0:03:00.8]}
2... Nc6 {[%clk 0:03:00]} 3. Bb5 {[%clk 0:02:59.9]} 3... g6 {[%clk 0:02:59.5]}
4. Bxc6 {[%clk 0:02:59.4]} 4... dxc6 {[%clk 0:03:00.4]} 5. d3 {[%clk 0:02:56]}
5... Qc7 {[%clk 0:03:00.5]} 6. Be3 {[%clk 0:02:50]} 6... e5 {[%clk 0:02:59.4]}
7. Nbd2 {[%clk 0:02:50.2]} 7... f6 {[%clk 0:02:38.5]} 8. a3 {[%clk 0:02:47.5]}
8... Nh6 {[%clk 0:02:35.2]} 9. h3 {[%clk 0:02:44.4]} 9... Nf7 {[%clk 0:02:34.4]}
10. O-O {[%clk 0:02:34.8]} 10... Be6 {[%clk 0:02:33.3]} 11. c3 {[%clk
0:02:29.2]} 11... Rd8 {[%clk 0:02:15.4]} 12. d4 {[%clk 0:02:27.7]} 12... cxd4
{[%clk 0:01:56.9]} 13. cxd4 {[%clk 0:02:28.6]} 13... Bd6 {[%clk 0:01:30.5]} 14.
Qc2 {[%clk 0:02:27.6]} 14... O-O {[%clk 0:01:25]} 15. Nc4 {[%clk 0:02:27.5]}
15... Rfe8 {[%clk 0:00:59.8]} 16. Nxd6 {[%clk 0:02:22.1]} 16... Rxd6 {[%clk
0:00:58.7]} 17. Rfd1 {[%clk 0:01:45.8]} 17... Red8 {[%clk 0:00:52]} 18. Rd2
{[%clk 0:01:33.3]} 18... b6 {[%clk 0:00:33.2]} 19. Rad1 {[%clk 0:01:31.5]} 19...
Bc8 {[%clk 0:00:26.9]} 20. Qb3 {[%clk 0:01:18.7]} 20... Be6 {[%clk 0:00:24.8]}
21. Qc3 {[%clk 0:01:18.4]} 21... R6d7 {[%clk 0:00:19.3]} 22. Rc1 {[%clk
0:01:07.2]} 22... Rc8 {[%clk 0:00:10.9]} 23. Rdc2 {[%clk 0:00:59.2]} 23... Nd6
{[%clk 0:00:08.9]} 24. dxe5 {[%clk 0:00:37.9]} 24... Nxe4 {[%clk 0:00:07.8]} 25.
Qxc6 {[%clk 0:00:36.8]} 25... Qxc6 {[%clk 0:00:07.8]} 26. Rxc6 {[%clk
0:00:37.7]} 26... Rxc6 {[%clk 0:00:06.1]} 27. Rxc6 {[%clk 0:00:38.6]} 27... Bd5
{[%clk 0:00:04]} 28. Rc8+ {[%clk 0:00:37.2]} 28... Kf7 {[%clk 0:00:03.8]} 29.
exf6 {[%clk 0:00:36.5]} 29... Kxf6 {[%clk 0:00:03.3]} 30. Bd4+ {[%clk
0:00:31.6]} 30... Ke6 {[%clk 0:00:03.4]} 31. Ne5 {[%clk 0:00:29.7]} 31... Re7
{[%clk 0:00:02.6]} 32. Ng4 {[%clk 0:00:25.3]} 32... Nd6 {[%clk 0:00:02.5]} 33.
Rh8 {[%clk 0:00:24.6]} 33... Nf5 {[%clk 0:00:02.6]} 34. Bc3 {[%clk 0:00:24.3]}
34... Rc7 {[%clk 0:00:02.7]} 35. Kh2 {[%clk 0:00:19.9]} 35... h5 {[%clk
0:00:02.4]} 36. Nf6 {[%clk 0:00:15.7]} 36... Bb3 {[%clk 0:00:02.6]} 37. Ne4
{[%clk 0:00:13.4]} 37... Kd5 {[%clk 0:00:02.1]} 38. Nd2 {[%clk 0:00:12.7]} 38...
Ba2 {[%clk 0:00:02.5]} 39. Rd8+ {[%clk 0:00:12.9]} 39... Ke6 {[%clk 0:00:02.8]}
40. g4 {[%clk 0:00:13.3]} 40... hxg4 {[%clk 0:00:02.3]} 41. hxg4 {[%clk
0:00:14.2]} 41... Rh7+ {[%clk 0:00:02.9]} 42. Kg2 {[%clk 0:00:13.1]} 42... Nd6
{[%clk 0:00:03.4]} 43. f3 {[%clk 0:00:12.8]} 43... Bd5 {[%clk 0:00:03.7]} 44.
Kg3 {[%clk 0:00:12.5]} 44... Re7 {[%clk 0:00:04.1]} 45. Bb4 {[%clk 0:00:12.4]}
45... Rd7 {[%clk 0:00:03.6]} 46. Rxd7 {[%clk 0:00:12.9]} 46... Kxd7 {[%clk
0:00:04.5]} 47. Bxd6 {[%clk 0:00:13.5]} 47... Kxd6 {[%clk 0:00:05.4]} 48. Kf4
{[%clk 0:00:14.2]} 48... Ke6 {[%clk 0:00:05.4]} 49. Kg5 {[%clk 0:00:14.7]} 49...
Kf7 {[%clk 0:00:05.9]} 50. f4 {[%clk 0:00:15.3]} 50... a5 {[%clk 0:00:04.1]} 51.
Nb1 {[%clk 0:00:14.8]} 51... Bc6 {[%clk 0:00:03.2]} 52. Nc3 {[%clk 0:00:15.2]}
52... Kg7 {[%clk 0:00:03.6]} 53. Ne2 {[%clk 0:00:15.3]} 53... Kf7 {[%clk
0:00:03.5]} 54. Nd4 {[%clk 0:00:16.2]} 54... Bd7 {[%clk 0:00:04.1]} 55. Nf3
{[%clk 0:00:16.2]} 55... Kg7 {[%clk 0:00:03.7]} 56. Ne5 {[%clk 0:00:16.8]} 56...
Be8 {[%clk 0:00:04.4]} 57. f5 {[%clk 0:00:17.3]} 57... gxf5 {[%clk 0:00:04.5]}
58. gxf5 {[%clk 0:00:18.2]} 58... Bb5 {[%clk 0:00:03.6]} 59. f6+ {[%clk
0:00:19.1]} 59... Kf8 {[%clk 0:00:04]} 60. Kf5 {[%clk 0:00:19.7]} 60... Ba4
{[%clk 0:00:03.2]} 61. Ke6 {[%clk 0:00:19.9]} 61... Bb3+ {[%clk 0:00:02.7]} 62.
Kd6 {[%clk 0:00:20.3]} 62... b5 {[%clk 0:00:02]} 63. Kc5 {[%clk 0:00:20.7]}
63... Ba4 {[%clk 0:00:02.5]} 64. Nc6 {[%clk 0:00:19.9]} 64... Kf7 {[%clk
0:00:02.4]} 65. Nxa5 {[%clk 0:00:19.9]} 65... b4 {[%clk 0:00:02.9]} 66. Kxb4
{[%clk 0:00:20]} 66... Be8 {[%clk 0:00:03.6]} 67. Kc5 {[%clk 0:00:20.4]} 67...
Kxf6 {[%clk 0:00:04.2]} 68. Nc6 {[%clk 0:00:20.6]} 68... Ke6 {[%clk 0:00:04.3]}
69. b4 {[%clk 0:00:21]} 69... Kd7 {[%clk 0:00:04.8]} 70. Kb6 {[%clk 0:00:21.4]}
70... Kc8 {[%clk 0:00:04.8]} 71. b5 {[%clk 0:00:21.8]} 71... Bf7 {[%clk
0:00:04.5]} 72. a4 {[%clk 0:00:22.3]} 1-0

[Event "*** Titled Tuesday Blitz"]
[Site "Chess.com"]
[Date "2020.04.21"]
[Round "4"]
[White "FMJoseHerrera"]
[Black "WelshTiger"]
[Result "1-0"]
[WhiteElo "2616"]
[BlackElo "2372"]
[TimeControl "180+1"]
[EndTime "10:41:24 PDT"]
[Termination "FMJoseHerrera won on time"]

1. Nf3 {[%clk 0:03:00.9]} 1... c5 {[%clk 0:02:59.7]} 2. g3 {[%clk 0:03:00.8]}
2... Nc6 {[%clk 0:02:57.8]} 3. Bg2 {[%clk 0:03:00.9]} 3... g6 {[%clk 0:02:57.7]}
4. d3 {[%clk 0:03:00.9]} 4... Bg7 {[%clk 0:02:56.4]} 5. Nc3 {[%clk 0:03:00.7]}
5... d6 {[%clk 0:02:55.4]} 6. h4 {[%clk 0:03:00.3]} 6... h6 {[%clk 0:02:52.1]}
7. e4 {[%clk 0:02:58.2]} 7... Nf6 {[%clk 0:02:48.7]} 8. Bf4 {[%clk 0:02:55.3]}
8... e5 {[%clk 0:02:47.9]} 9. Be3 {[%clk 0:02:54.6]} 9... Bg4 {[%clk 0:02:47.8]}
10. Qd2 {[%clk 0:02:54.2]} 10... Nd4 {[%clk 0:02:41]} 11. Nh2 {[%clk 0:02:52.6]}
11... Be6 {[%clk 0:02:35.8]} 12. O-O {[%clk 0:02:46]} 12... Ng4 {[%clk
0:02:24.1]} 13. Nxg4 {[%clk 0:02:45.4]} 13... Bxg4 {[%clk 0:02:24.3]} 14. Nd5
{[%clk 0:02:45.8]} 14... Nf3+ {[%clk 0:02:16.7]} 15. Bxf3 {[%clk 0:02:42.8]}
15... Bxf3 {[%clk 0:02:17]} 16. b4 {[%clk 0:02:19.9]} 16... Qd7 {[%clk
0:02:14.2]} 17. Kh2 {[%clk 0:02:16.7]} 17... c4 {[%clk 0:02:07.8]} 18. dxc4
{[%clk 0:02:01.7]} 18... Bxe4 {[%clk 0:02:06.8]} 19. f3 {[%clk 0:02:01.7]} 19...
Bf5 {[%clk 0:01:59.7]} 20. Rfe1 {[%clk 0:01:52.4]} 20... Be6 {[%clk 0:01:59.2]}
21. Rad1 {[%clk 0:01:50.1]} 21... Qc6 {[%clk 0:01:45.1]} 22. f4 {[%clk
0:01:16.6]} 22... Qxc4 {[%clk 0:01:38.9]} 23. fxe5 {[%clk 0:01:16.4]} 23... Bxe5
{[%clk 0:01:39.1]} 24. Bf4 {[%clk 0:01:16.5]} 24... Bxd5 {[%clk 0:01:18.1]} 25.
Qxd5 {[%clk 0:01:17.4]} 25... Qxd5 {[%clk 0:01:16.3]} 26. Rxd5 {[%clk
0:01:16.6]} 26... O-O-O {[%clk 0:01:06.1]} 27. Bxe5 {[%clk 0:01:04.3]} 27...
dxe5 {[%clk 0:01:06]} 28. Rc5+ {[%clk 0:01:05.2]} 28... Kb8 {[%clk 0:01:04.1]}
29. Rexe5 {[%clk 0:01:06.1]} 29... Rhe8 {[%clk 0:01:01]} 30. Kh3 {[%clk
0:01:03.1]} 30... f6 {[%clk 0:00:55.4]} 31. Rxe8 {[%clk 0:00:52.4]} 31... Rxe8
{[%clk 0:00:55.5]} 32. a4 {[%clk 0:00:52.7]} 32... Re4 {[%clk 0:00:47.9]} 33. c3
{[%clk 0:00:50.9]} 33... f5 {[%clk 0:00:44.4]} 34. h5 {[%clk 0:00:42.7]} 34...
gxh5 {[%clk 0:00:31.9]} 35. Rxf5 {[%clk 0:00:42.4]} 35... h4 {[%clk 0:00:32.4]}
36. Rf4 {[%clk 0:00:27.4]} 36... Re3 {[%clk 0:00:29.3]} 37. Kxh4 {[%clk
0:00:25.5]} 37... Rxc3 {[%clk 0:00:28.7]} 38. g4 {[%clk 0:00:25.9]} 38... Rc1
{[%clk 0:00:19.8]} 39. Kh5 {[%clk 0:00:25.3]} 39... Rh1+ {[%clk 0:00:19.9]} 40.
Kg6 {[%clk 0:00:25.9]} 40... Kc7 {[%clk 0:00:20.3]} 41. Rd4 {[%clk 0:00:24.7]}
41... Kc6 {[%clk 0:00:18]} 42. Rc4+ {[%clk 0:00:23.2]} 42... Kd6 {[%clk
0:00:18]} 43. a5 {[%clk 0:00:22]} 43... b6 {[%clk 0:00:17.4]} 44. a6 {[%clk
0:00:20.5]} 44... Kd5 {[%clk 0:00:16.5]} 45. Rc7 {[%clk 0:00:20.3]} 45... Rg1
{[%clk 0:00:14]} 46. Kh5 {[%clk 0:00:20]} 46... Rh1+ {[%clk 0:00:14]} 47. Kg6
{[%clk 0:00:20.4]} 47... Rg1 {[%clk 0:00:14.3]} 48. Rxa7 {[%clk 0:00:18.1]}
48... Rxg4+ {[%clk 0:00:14]} 49. Kxh6 {[%clk 0:00:18.6]} 49... Rxb4 {[%clk
0:00:14.5]} 50. Rb7 {[%clk 0:00:18.9]} 50... Kc6 {[%clk 0:00:14.6]} 51. Rg7
{[%clk 0:00:17]} 51... Ra4 {[%clk 0:00:14.8]} 52. a7 {[%clk 0:00:16.3]} 52... b5
{[%clk 0:00:15.1]} 53. Kg5 {[%clk 0:00:16.7]} 53... b4 {[%clk 0:00:15.4]} 54.
Kf4 {[%clk 0:00:13.3]} 54... b3+ {[%clk 0:00:15.8]} 55. Ke3 {[%clk 0:00:13.2]}
55... b2 {[%clk 0:00:15.3]} 56. Rg1 {[%clk 0:00:13.2]} 56... Ra1 {[%clk
0:00:15.3]} 57. Rb1 {[%clk 0:00:06.2]} 57... Rxb1 {[%clk 0:00:12.4]} 58. a8=Q+
{[%clk 0:00:06.1]} 58... Kc5 {[%clk 0:00:11]} 59. Qa5+ {[%clk 0:00:04.7]} 59...
Kc4 {[%clk 0:00:11.1]} 60. Qa2+ {[%clk 0:00:04.9]} 60... Kc3 {[%clk 0:00:10.9]}
61. Qxb1 {[%clk 0:00:05.8]} 1-0